[Event "Nordic Chess-ch 2019"]
[Site "Sarpsborg"]
[Date "2019.06.22"]
[Round "3.35"]
[White "Andersen, Dag"]
[Black "Mirza, Raad"]
[Result "1/2-1/2"]
[ECO "D46"]
[WhiteElo "1817"]
[BlackElo "1991"]
[Annotator "NA"]
[PlyCount "141"]
[EventDate "2019.06.21"]
[EventType "swiss"]
[EventCountry "NOR"]
[SourceTitle "playchess.com"]
[Source "ChessBase"]
[SourceQuality "1"]
[TimeControl "40/5400+30:1800+30"]

1. d4 {[%emt 0:00:18]} Nf6 {[%emt 0:00:00]} 2. Nf3 {[%emt 0:00:21]} d5 {[%emt 0:00:00]} 3. c4 {[%emt 0:02:40]} c6 {[%emt 0:05:09]} 4. e3 {[%emt 0:00:59]} e6 {[%emt 0:04:50]} 5. Nc3 {[%emt 0:00:12]} Bd6 {[%emt 0:01:09]} 6. Bd3 {[%emt 0:04:52]} Nbd7 {[%emt 0:01:13]} 7. O-O {[%emt 0:00:33]} O-O {[%emt 0:01:04]} 8. b3 {[%emt 0:01:42]} e5 {[%emt 0:05:36]} 9. dxe5 {[%emt 0:03:44]} Nxe5 {[%emt 0:00:49]} 10. Be2 {[%emt 0:06:28]} dxc4 {[%emt 0:02:12]} 11. bxc4 {[%emt 0:00:36]} Be6 {[%emt 0:04:27]} 12. Qa4 {[%emt 0:08:58]} Qc7 {[%emt 0:01:03]} 13. h3 {[%emt 0:04:03]} Rfd8 {[%emt 0:07:53]} 14. Nd4 {[%emt 0:02:42]} Qe7 {[%emt 0:08:51]} 15. Nxe6 {[%emt 0:02:34]} Qxe6 {[%emt 0:00:37]} 16. Rb1 {[%emt 0:09:19]} Ned7 {[%emt 0:03:06]} 17. Qc2 {[%emt 0:05:35]} Rab8 {[%emt 0:02:09]} 18. e4 {[%emt 0:03:30]} Re8 {[%emt 0:06:51]} 19. Bd3 {[%emt 0:06:57]} Ne5 {[%emt 0:05:30]} 20. Be3 {[%emt 0:04:47]} b6 {[%emt 0:01:10]} 21. Rbd1 {[%emt 0:03:33]} Rbd8 {[%emt 0:01:52]} 22. c5 {[%emt 0:10:07]} bxc5 {[%emt 0:04:08]} 23. Be2 {[%emt 0:01:33]} Ned7 {[%emt 0:08:25]} 24. Bg5 {[%emt 0:01:55]} h6 {[%emt 0:01:00]} 25. Bxf6 {[%emt 0:04:12]} Nxf6 {[%emt 0:01:01]} 26. Bf3 {[%emt 0:03:06]} Qe5 {[%emt 0:00:36]} 27. g3 {[%emt 0:00:13]} Nh7 {[%emt 0:03:31]} 28. Bg2 {[%emt 0:00:46]} Be7 {[%emt 0:08:43]} 29. f4 {[%emt 0:00:34]} Qe6 {[%emt 0:00:24]} 30. e5 {[%emt 0:00:40]} Rd4 {[%emt 0:02:08]} 31. Rxd4 {[%emt 0:02:04]} cxd4 {[%emt 0:00:07]} 32. Ne4 {[%emt 0:01:08]} Rc8 {[%emt 0:01:09]} 33. Rb1 {[%emt 0:00:38]} Bd8 {[%emt 0:00:53]} 34. Nd6 {[%emt 0:00:25]} Bb6 {[%emt 0:01:10]} 35. Rxb6 {[%emt 0:01:41]} axb6 {[%emt 0:00:04]} 36. Nxc8 {[%emt 0:00:10]} Qxc8 {[%emt 0:00:11]} 37. Qxc6 {[%emt 0:00:17]} Qxc6 {[%emt 0:00:42]} 38. Bxc6 {[%emt 0:00:02]} g6 {[%emt 0:02:39]} 39. Kf2 {[%emt 0:00:09]} Kf8 {[%emt 0:00:04]} 40. Ke2 {[%emt 0:00:14]} Ke7 {[%emt 0:00:16]} 41. Kd3 {[%emt 0:30:41]} Nf8 {[%emt 0:34:09]} 42. Kxd4 {[%emt 0:02:32]} Ne6+ {[%emt 0:00:03]} 43. Kc4 {[%emt 0:00:29]} Nc7 {[%emt 0:00:08]} 44. a4 {[%emt 0:01:02]} Ke6 {[%emt 0:01:21]} 45. Be4 {[%emt 0:00:44]} g5 {[%emt 0:01:33]} 46. Kd4 {[%emt 0:00:47]} f6 {[%emt 0:00:00]} 47. f5+ {[%emt 0:00:00]} Ke7 {[%emt 0:00:00]} 48. e6 {[%emt 0:00:00]} Kd6 {[%emt 0:00:00]} 49. Bf3 {[%emt 0:00:00]} Ne8 {[%emt 0:00:00]} 50. g4 {[%emt 0:00:00]} Nc7 {[%emt 0:00:00]} 51. Kc4 {[%emt 0:00:00]} Ke7 {[%emt 0:00:00]} 52. Bb7 {[%emt 0:00:00]} Kd6 {[%emt 0:00:00]} 53. Be4 {[%emt 0:00:00]} Ke7 {[%emt 0:00:00]} 54. Bc6 {[%emt 0:00:00]} Kd6 {[%emt 0:00:00]} 55. Bf3 {[%emt 0:00:00]} Ke7 {[%emt 0:00:00]} 56. Kb4 {[%emt 0:00:00]} Kd6 {[%emt 0:00:00]} 57. a5 {[%emt 0:00:00]} bxa5+ {[%emt 0:00:00]} 58. Kxa5 {[%emt 0:00:00]} Ne8 {[%emt 0:00:00]} 59. Kb6 {[%emt 0:00:00]} Ke7 {[%emt 0:00:00]} 60. Kc6 {[%emt 0:00:00]} Nd6 {[%emt 0:00:00]} 61. Bd5 {[%emt 0:00:00]} Ne8 {[%emt 0:00:00]} 62. Kc5 {[%emt 0:00:00]} Nd6 {[%emt 0:00:00]} 63. Bc6 {[%emt 0:00:00]} Nc8 {[%emt 0:00:00]} 64. Bd7 {[%emt 0:00:00]} Nd6 {[%emt 0:00:00]} 65. Kd5 {[%emt 0:00:00]} Nb7 {[%emt 0:00:00]} 66. Ba4 {[%emt 0:00:00]} Nd6 {[%emt 0:00:24]} 67. Bc2 {[%emt 0:00:00]} Nb5 {[%emt 0:02:12]} 68. Bd3 {[%emt 0:00:06]} Nd6 {[%emt 0:01:09]} 69. Kc6 {[%emt 0:00:10]} Ne8 {[%emt 0:00:24]} 70. Bc2 {[%emt 0:01:03]} Nd6 {[%emt 0:00:09]} 71. Bd3 {[%emt 0:00:25]} 1/2-1/2

[Event "Nordic Chess-ch 2019"]
[Site "Sarpsborg"]
[Date "2019.06.22"]
[Round "3.36"]
[White "Skogheim, Ole Morten"]
[Black "Sather, Lars"]
[Result "1-0"]
[ECO "B41"]
[WhiteElo "1950"]
[BlackElo "1730"]
[Annotator "NA"]
[PlyCount "79"]
[EventDate "2019.06.21"]
[EventType "swiss"]
[EventCountry "NOR"]
[SourceTitle "playchess.com"]
[Source "ChessBase"]
[SourceQuality "1"]
[TimeControl "40/5400+30:1800+30"]

1. e4 {[%emt 0:00:00]} e6 {[%emt 0:00:00]} 2. d4 {[%emt 0:00:00]} c5 {[%emt 0:00:00]} 3. Nf3 {[%emt 0:03:05]} cxd4 {[%emt 0:00:00]} 4. Nxd4 {[%emt 0:00:05]} a6 {[%emt 0:00:07]} 5. c4 {[%emt 0:00:29]} Bc5 {[%emt 0:04:10]} 6. Nb3 {[%emt 0:03:06]} Ba7 {[%emt 0:00:20]} 7. Nc3 {[%emt 0:02:22]} Nc6 {[%emt 0:01:25]} 8. Qe2 {[%emt 0:11:52]} Nge7 {[%emt 0:02:17]} 9. Be3 {[%emt 0:03:01]} O-O {[%emt 0:00:36]} 10. Bxa7 {[%emt 0:02:48]} Nxa7 {[%emt 0:00:12]} 11. Qe3 {[%emt 0:01:52]} f5 {[%emt 0:03:58]} 12. Bd3 {[%emt 0:03:40]} f4 {[%emt 0:01:51]} 13. Qd2 {[%emt 0:00:39]} Nec6 {[%emt 0:02:35]} 14. O-O-O {[%emt 0:02:00]} Ne5 {[%emt 0:02:04]} 15. Be2 {[%emt 0:02:31]} Nac6 {[%emt 0:05:28]} 16. Kb1 {[%emt 0:05:19]} Na5 {[%emt 0:09:00]} 17. Qd4 {[%emt 0:04:54]} Nec6 {[%emt 0:05:41]} 18. Qc5 {[%emt 0:03:18]} Nxb3 {[%emt 0:02:39]} 19. axb3 {[%emt 0:00:13]} b6 {[%emt 0:01:02]} 20. Qd6 {[%emt 0:01:13]} Na5 {[%emt 0:02:55]} 21. b4 {[%emt 0:01:52]} Nb7 {[%emt 0:00:11]} 22. Qd4 {[%emt 0:01:25]} a5 {[%emt 0:02:06]} 23. Na4 {[%emt 0:01:57]} axb4 {[%emt 0:07:38]} 24. Nxb6 {[%emt 0:00:14]} Ra6 {[%emt 0:02:47]} 25. c5 {[%emt 0:02:40]} Ra5 {[%emt 0:02:10]} 26. c6 {[%emt 0:01:20]} Nc5 {[%emt 0:00:49]} 27. Qxb4 {[%emt 0:01:00]} Nxe4 {[%emt 0:04:56]} 28. Nxc8 {[%emt 0:03:29]} d5 {[%emt 0:04:10]} 29. Ne7+ {[%emt 0:02:08]} Kf7 {[%emt 0:00:35]} 30. Qxe4 {[%emt 0:06:42]} Qxe7 {[%emt 0:01:44]} 31. Qxh7 {[%emt 0:01:22]} Qf6 {[%emt 0:01:11]} 32. Bh5+ {[%emt 0:04:26]} Ke7 {[%emt 0:00:36]} 33. Qg6 {[%emt 0:00:21]} Qe5 {[%emt 0:09:58]} 34. Rhe1 {[%emt 0:02:19]} Qf5+ {[%emt 0:04:23]} 35. Qxf5 {[%emt 0:00:17]} Rxf5 {[%emt 0:01:21]} 36. Bg4 {[%emt 0:00:36]} Rg5 {[%emt 0:00:09]} 37. Bxe6 {[%emt 0:00:58]} Kd6 {[%emt 0:00:11]} 38. Rc1 {[%emt 0:02:08]} Kc7 {[%emt 0:00:37]} 39. Bh3 {[%emt 0:00:26]} Ra8 {[%emt 0:08:24]} 40. Re7+ {[%emt 0:01:02]} 1-0

[Event "Nordic Chess-ch 2019"]
[Site "Sarpsborg"]
[Date "2019.06.22"]
[Round "3.37"]
[White "Larsen, Bjorn"]
[Black "Kirppo, Ronny"]
[Result "1/2-1/2"]
[ECO "B73"]
[WhiteElo "1680"]
[BlackElo "1910"]
[Annotator "NA"]
[PlyCount "58"]
[EventDate "2019.06.21"]
[EventType "swiss"]
[EventCountry "NOR"]
[SourceTitle "playchess.com"]
[Source "ChessBase"]
[SourceQuality "1"]
[TimeControl "40/5400+30:1800+30"]

1. e4 {[%emt 0:00:17]} c5 {[%emt 0:00:00]} 2. Nf3 {[%emt 0:00:25]} Nc6 {[%emt 0:00:00]} 3. d4 {[%emt 0:00:06]} cxd4 {[%emt 0:00:00]} 4. Nxd4 {[%emt 0:00:14]} Nf6 {[%emt 0:00:00]} 5. Nc3 {[%emt 0:00:09]} d6 {[%emt 0:00:05]} 6. Be2 {[%emt 0:00:52]} g6 {[%emt 0:01:19]} 7. Be3 {[%emt 0:00:47]} Bg7 {[%emt 0:00:08]} 8. O-O {[%emt 0:01:41]} O-O {[%emt 0:00:13]} 9. Qd2 {[%emt 0:01:18]} Bd7 {[%emt 0:08:35]} 10. Rfd1 {[%emt 0:02:49]} a6 {[%emt 0:05:38]} 11. a4 {[%emt 0:00:08]} Rc8 {[%emt 0:01:08]} 12. f3 {[%emt 0:08:30]} Nxd4 {[%emt 0:23:14]} 13. Bxd4 {[%emt 0:02:00]} Be6 {[%emt 0:00:06]} 14. Qe3 {[%emt 0:17:14]} Nd7 {[%emt 0:03:50]} 15. Bxg7 {[%emt 0:01:15]} Kxg7 {[%emt 0:00:02]} 16. Rd2 {[%emt 0:06:05]} Qc7 {[%emt 0:08:54]} 17. Nd5 {[%emt 0:03:15]} Bxd5 {[%emt 0:00:16]} 18. exd5 {[%emt 0:01:22]} Nf6 {[%emt 0:00:21]} 19. c4 {[%emt 0:01:04]} a5 {[%emt 0:07:14]} 20. b3 {[%emt 0:03:37]} Rfd8 {[%emt 0:01:39]} 21. Re1 {[%emt 0:01:36]} Qc5 {[%emt 0:01:05]} 22. Qxc5 {[%emt 0:01:03]} dxc5 {[%emt 0:00:46]} 23. Rb2 {[%emt 0:05:16]} Ne8 {[%emt 0:00:59]} 24. Bd1 {[%emt 0:00:49]} Rc7 {[%emt 0:00:35]} 25. Rbe2 {[%emt 0:00:31]} Kf8 {[%emt 0:00:46]} 26. Bc2 {[%emt 0:01:45]} Nd6 {[%emt 0:04:05]} 27. Kf2 {[%emt 0:01:17]} Re8 {[%emt 0:01:12]} 28. Kg3 {[%emt 0:00:47]} Kg7 {[%emt 0:00:30]} 29. Kf4 {[%emt 0:01:19]} Kf6 {[%emt 0:02:10]} 1/2-1/2

[Event "Nordic Chess-ch 2019"]
[Site "Sarpsborg"]
[Date "2019.06.22"]
[Round "3.38"]
[White "Bergquist, Rune"]
[Black "Andersen, Harry"]
[Result "0-1"]
[ECO "D87"]
[WhiteElo "1609"]
[BlackElo "1905"]
[Annotator "NA"]
[PlyCount "64"]
[EventDate "2019.06.21"]
[EventType "swiss"]
[EventCountry "NOR"]
[SourceTitle "playchess.com"]
[Source "ChessBase"]
[SourceQuality "1"]
[TimeControl "40/5400+30:1800+30"]

1. d4 {[%emt 0:07:11]} Nf6 {[%emt 0:00:00]} 2. c4 {[%emt 0:00:19]} g6 {[%emt 0:00:00]} 3. Nc3 {[%emt 0:00:25]} d5 {[%emt 0:00:17]} 4. cxd5 {[%emt 0:00:23]} Nxd5 {[%emt 0:00:11]} 5. e4 {[%emt 0:00:13]} Nxc3 {[%emt 0:00:11]} 6. bxc3 {[%emt 0:00:02]} Bg7 {[%emt 0:00:12]} 7. Bc4 {[%emt 0:00:44]} O-O {[%emt 0:00:20]} 8. Ne2 {[%emt 0:01:55]} c5 {[%emt 0:00:21]} 9. Be3 {[%emt 0:00:34]} Nc6 {[%emt 0:01:14]} 10. Rc1 {[%emt 0:00:37]} Na5 {[%emt 0:08:38]} 11. Bd3 {[%emt 0:02:46]} cxd4 {[%emt 0:04:34]} 12. cxd4 {[%emt 0:00:43]} Nc6 {[%emt 0:02:34]} 13. Bb1 {[%emt 0:01:35]} Bg4 {[%emt 0:03:16]} 14. f3 {[%emt 0:04:16]} Bd7 {[%emt 0:00:31]} 15. h4 {[%emt 0:02:59]} h5 {[%emt 0:02:57]} 16. e5 {[%emt 0:08:19]} e6 {[%emt 0:05:36]} 17. Qd2 {[%emt 0:24:34]} Rc8 {[%emt 0:05:11]} 18. Kf2 {[%emt 0:03:47]} Qa5 {[%emt 0:02:38]} 19. Qb2 {[%emt 0:04:10]} Qb4 {[%emt 0:07:27]} 20. Qxb4 {[%emt 0:05:49]} Nxb4 {[%emt 0:00:25]} 21. Nc3 {[%emt 0:02:29]} Rc4 {[%emt 0:03:20]} 22. a3 {[%emt 0:01:58]} Rfc8 {[%emt 0:02:58]} 23. axb4 {[%emt 0:04:11]} Rxc3 {[%emt 0:00:08]} 24. Bd2 {[%emt 0:06:27]} R3c4 {[%emt 0:02:14]} 25. Ke3 {[%emt 0:02:55]} Bf8 {[%emt 0:03:55]} 26. Rxc4 {[%emt 0:00:35]} Rxc4 {[%emt 0:00:30]} 27. Ba2 {[%emt 0:01:23]} Rc2 {[%emt 0:01:34]} 28. Bb1 {[%emt 0:01:48]} Bh6+ {[%emt 0:00:25]} 29. f4 {[%emt 0:00:36]} Bxf4+ {[%emt 0:00:39]} 30. Kxf4 {[%emt 0:00:27]} Rxd2 {[%emt 0:00:20]} 31. Ke3 {[%emt 0:02:26]} Rb2 {[%emt 0:02:08]} 32. Be4 {[%emt 0:03:57]} Rb3+ {[%emt 0:00:49]} 0-1

[Event "Nordic Chess-ch 2019"]
[Site "Sarpsborg"]
[Date "2019.06.22"]
[Round "3.40"]
[White "Stubrud, Jan Magne"]
[Black "Eriksen, Oddvar"]
[Result "1-0"]
[ECO "D00"]
[WhiteElo "1681"]
[BlackElo "1520"]
[Annotator "NA"]
[PlyCount "83"]
[EventDate "2019.06.21"]
[EventType "swiss"]
[EventCountry "NOR"]
[SourceTitle "playchess.com"]
[Source "ChessBase"]
[SourceQuality "1"]
[TimeControl "40/5400+30:1800+30"]

1. d4 {[%emt 0:00:00]} d5 {[%emt 0:00:00]} 2. Bf4 {[%emt 0:00:00]} e6 {[%emt 0:00:17]} 3. e3 {[%emt 0:00:33]} Bd6 {[%emt 0:00:06]} 4. Bg3 {[%emt 0:02:13]} Nf6 {[%emt 0:01:08]} 5. Nd2 {[%emt 0:00:52]} Nbd7 {[%emt 0:00:40]} 6. Ngf3 {[%emt 0:02:13]} a6 {[%emt 0:00:46]} 7. c4 {[%emt 0:00:50]} Ne4 {[%emt 0:01:00]} 8. c5 {[%emt 0:10:21]} Be7 {[%emt 0:04:10]} 9. Nxe4 {[%emt 0:01:22]} dxe4 {[%emt 0:01:58]} 10. Nd2 {[%emt 0:00:22]} Nf6 {[%emt 0:01:22]} 11. Qc2 {[%emt 0:01:13]} c6 {[%emt 0:03:16]} 12. b4 {[%emt 0:06:11]} Qd5 {[%emt 0:00:41]} 13. Be5 {[%emt 0:01:30]} O-O {[%emt 0:01:27]} 14. Bc4 {[%emt 0:01:49]} Qd7 {[%emt 0:00:04]} 15. Nxe4 {[%emt 0:00:58]} Nxe4 {[%emt 0:01:10]} 16. Qxe4 {[%emt 0:00:16]} f6 {[%emt 0:02:24]} 17. Bg3 {[%emt 0:01:58]} a5 {[%emt 0:00:45]} 18. bxa5 {[%emt 0:05:36]} Rxa5 {[%emt 0:01:18]} 19. O-O {[%emt 0:00:20]} f5 {[%emt 0:03:16]} 20. Qc2 {[%emt 0:11:48]} Kh8 {[%emt 0:03:39]} 21. Be5 {[%emt 0:05:00]} Bf6 {[%emt 0:01:32]} 22. f4 {[%emt 0:01:28]} Bxe5 {[%emt 0:03:35]} 23. fxe5 {[%emt 0:00:16]} Qe7 {[%emt 1:06:56]} 24. Rab1 {[%emt 0:44:51]} Qg5 {[%emt 0:00:30]} 25. Rf3 {[%emt 0:00:30]} Ra3 {[%emt 0:00:00]} 26. Qf2 {[%emt 0:00:00]} Kg8 {[%emt 0:00:00]} 27. Bb3 {[%emt 0:00:00]} Ra8 {[%emt 0:00:00]} 28. Rf1 {[%emt 0:00:00]} Bd7 {[%emt 0:00:00]} 29. e4 {[%emt 0:00:00]} f4 {[%emt 0:00:00]} 30. Rxf4 {[%emt 0:00:00]} Rxf4 {[%emt 0:03:00]} 31. Qxf4 {[%emt 0:03:00]} Qxf4 {[%emt 0:00:30]} 32. Rxf4 {[%emt 0:00:30]} Rf8 {[%emt 0:00:00]} 33. Rf2 {[%emt 0:00:00]} g6 {[%emt 0:00:00]} 34. d5 {[%emt 0:00:00]} Rxf2 {[%emt 0:00:00]} 35. Kxf2 {[%emt 0:00:00]} Kf7 {[%emt 0:00:00]} 36. Ke3 {[%emt 0:00:00]} Ke7 {[%emt 0:00:00]} 37. Kf4 {[%emt 0:00:00]} h6 {[%emt 0:00:00]} 38. h4 {[%emt 0:00:00]} cxd5 {[%emt 0:00:00]} 39. exd5 {[%emt 0:00:00]} exd5 {[%emt 0:04:00]} 40. Bxd5 {[%emt 0:04:00]} Bc6 {[%emt 0:00:00]} 41. Bxc6 {[%emt 0:10:05]} bxc6 {[%emt 0:31:00]} 42. a4 {[%emt 0:20:55]} 1-0

[Event "Nordic Chess-ch 2019"]
[Site "Sarpsborg"]
[Date "2019.06.22"]
[Round "3.41"]
[White "Lunde, Sigmund"]
[Black "Thorvlaksson, Baldvin"]
[Result "1/2-1/2"]
[ECO "B84"]
[WhiteElo "1834"]
[BlackElo "1523"]
[Annotator "NA"]
[PlyCount "126"]
[EventDate "2019.06.21"]
[EventType "swiss"]
[EventCountry "NOR"]
[SourceTitle "playchess.com"]
[Source "ChessBase"]
[SourceQuality "1"]
[TimeControl "40/5400+30:1800+30"]

1. e4 {[%emt 0:00:20]} c5 {[%emt 0:00:00]} 2. Nf3 {[%emt 0:03:07]} d6 {[%emt 0:00:00]} 3. Nc3 {[%emt 0:06:23]} Nc6 {[%emt 0:01:20]} 4. d4 {[%emt 0:02:19]} cxd4 {[%emt 0:01:47]} 5. Nxd4 {[%emt 0:01:52]} Nf6 {[%emt 0:00:33]} 6. Be2 {[%emt 0:02:18]} e6 {[%emt 0:02:48]} 7. O-O {[%emt 0:06:41]} Be7 {[%emt 0:02:06]} 8. Be3 {[%emt 0:02:12]} a6 {[%emt 0:02:20]} 9. Rb1 {[%emt 0:10:33]} Bd7 {[%emt 0:01:50]} 10. f4 {[%emt 0:01:42]} b5 {[%emt 0:02:35]} 11. a3 {[%emt 0:00:53]} Nxd4 {[%emt 0:12:31]} 12. Qxd4 {[%emt 0:01:02]} Bc6 {[%emt 0:00:37]} 13. Rbd1 {[%emt 0:05:53]} d5 {[%emt 0:04:05]} 14. e5 {[%emt 0:03:47]} Nd7 {[%emt 0:02:15]} 15. b4 {[%emt 0:03:09]} Rb8 {[%emt 0:02:47]} 16. Bg4 {[%emt 0:17:12]} Nb6 {[%emt 0:07:45]} 17. f5 {[%emt 0:02:07]} Bd7 {[%emt 0:02:25]} 18. fxe6 {[%emt 0:07:35]} Bxe6 {[%emt 0:01:00]} 19. Bxe6 {[%emt 0:02:09]} fxe6 {[%emt 0:00:18]} 20. Qg4 {[%emt 0:01:08]} Nc4 {[%emt 0:06:39]} 21. Bd4 {[%emt 0:01:14]} Qd7 {[%emt 0:04:21]} 22. Qxg7 {[%emt 0:00:50]} Rf8 {[%emt 0:00:05]} 23. Qxh7 {[%emt 0:04:02]} Kd8 {[%emt 0:00:11]} 24. Rxf8+ {[%emt 0:02:50]} Bxf8 {[%emt 0:00:03]} 25. Qxd7+ {[%emt 0:11:12]} Kxd7 {[%emt 0:00:07]} 26. Nb1 {[%emt 0:00:00]} Bh6 {[%emt 0:00:52]} 27. Rd3 {[%emt 0:00:00]} Rg8 {[%emt 0:02:08]} 28. Rf3 {[%emt 0:00:00]} Rg7 {[%emt 0:00:22]} 29. Kf2 {[%emt 0:00:00]} Ke7 {[%emt 0:00:16]} 30. h3 {[%emt 0:00:00]} Rf7 {[%emt 0:00:27]} 31. g4 {[%emt 0:00:00]} Rf4 {[%emt 0:02:08]} 32. Rxf4 {[%emt 0:00:00]} Bxf4 {[%emt 0:00:03]} 33. Kf3 {[%emt 0:00:00]} Bxe5 {[%emt 0:00:25]} 34. Bxe5 {[%emt 0:00:33]} Nxe5+ {[%emt 0:00:07]} 35. Ke3 {[%emt 0:00:45]} Nc4+ {[%emt 0:01:56]} 36. Kd4 {[%emt 0:02:00]} Kd6 {[%emt 0:00:19]} 37. g5 {[%emt 0:00:29]} e5+ {[%emt 0:00:12]} 38. Kd3 {[%emt 0:00:15]} e4+ {[%emt 0:00:51]} 39. Kd4 {[%emt 0:00:47]} Ke6 {[%emt 0:00:09]} 40. g6 {[%emt 0:01:22]} Kf6 {[%emt 0:00:20]} 41. Nc3 {[%emt 0:31:15]} Nxa3 {[%emt 0:34:08]} 42. Nxd5+ {[%emt 0:00:00]} Kxg6 {[%emt 0:00:00]} 43. Ne3 {[%emt 0:00:00]} Kg5 {[%emt 0:00:00]} 44. Kxe4 {[%emt 0:00:00]} Kh4 {[%emt 0:00:00]} 45. Kd3 {[%emt 0:00:00]} Kxh3 {[%emt 0:37:19]} 46. Nd5 {[%emt 0:03:04]} Kg3 {[%emt 0:00:00]} 47. Nc7 {[%emt 0:00:00]} Kf4 {[%emt 0:00:00]} 48. Nxa6 {[%emt 0:00:00]} Ke5 {[%emt 0:00:00]} 49. Nc5 {[%emt 0:00:00]} Kd5 {[%emt 0:00:00]} 50. Kc3 {[%emt 0:00:00]} Nb1+ {[%emt 0:00:00]} 51. Kb2 {[%emt 0:00:00]} Nd2 {[%emt 0:00:00]} 52. Nb3 {[%emt 0:00:00]} Nc4+ {[%emt 0:00:00]} 53. Kc3 {[%emt 0:00:00]} Nb6 {[%emt 0:00:00]} 54. Nd2 {[%emt 0:00:00]} Na4+ {[%emt 0:00:00]} 55. Kb3 {[%emt 0:00:00]} Nb6 {[%emt 0:00:00]} 56. c3 {[%emt 0:00:00]} Nc8 {[%emt 0:00:00]} 57. Kc2 {[%emt 0:00:00]} Nd6 {[%emt 0:00:00]} 58. Kd3 {[%emt 0:00:00]} Ne8 {[%emt 0:00:00]} 59. Nf1 {[%emt 0:00:00]} Ke5 {[%emt 0:00:00]} 60. Ne3 {[%emt 0:00:00]} Nf6 {[%emt 0:00:00]} 61. c4 {[%emt 0:00:00]} bxc4+ {[%emt 0:00:00]} 62. Kxc4 {[%emt 0:00:00]} Kd6 {[%emt 0:00:00]} 63. b5 {[%emt 0:00:21]} Nd7 {[%emt 0:00:00]} 1/2-1/2

[Event "Nordic Chess-ch 2019"]
[Site "Sarpsborg"]
[Date "2019.06.22"]
[Round "3.42"]
[White "Heikkila, Raine"]
[Black "Lilleng, Gunnar"]
[Result "1/2-1/2"]
[ECO "A41"]
[WhiteElo "1663"]
[BlackElo "1485"]
[Annotator "NA"]
[PlyCount "114"]
[EventDate "2019.06.21"]
[EventType "swiss"]
[EventCountry "NOR"]
[SourceTitle "playchess.com"]
[Source "ChessBase"]
[SourceQuality "1"]
[TimeControl "40/5400+30:1800+30"]

1. e4 {[%emt 0:00:00]} d6 {[%emt 0:00:00]} 2. d4 {[%emt 0:00:00]} Nf6 {[%emt 0:00:26]} 3. Nc3 {[%emt 0:00:00]} Bg4 {[%emt 0:00:09]} 4. Nf3 {[%emt 0:00:17]} e6 {[%emt 0:00:48]} 5. Be2 {[%emt 0:00:09]} Nbd7 {[%emt 0:00:38]} 6. h3 {[%emt 0:00:18]} Bh5 {[%emt 0:00:14]} 7. Bg5 {[%emt 0:00:17]} Be7 {[%emt 0:00:29]} 8. Qd3 {[%emt 0:00:47]} c6 {[%emt 0:01:29]} 9. O-O-O {[%emt 0:00:23]} h6 {[%emt 0:06:53]} 10. Be3 {[%emt 0:02:01]} Bg6 {[%emt 0:01:49]} 11. Nd2 {[%emt 0:00:45]} d5 {[%emt 0:01:36]} 12. f3 {[%emt 0:00:23]} Nh5 {[%emt 0:05:18]} 13. g4 {[%emt 0:01:28]} Ng3 {[%emt 0:01:03]} 14. Rhg1 {[%emt 0:00:37]} Nxe2+ {[%emt 0:00:27]} 15. Qxe2 {[%emt 0:00:25]} Nb6 {[%emt 0:04:57]} 16. Rdf1 {[%emt 0:00:30]} Bh7 {[%emt 0:02:17]} 17. f4 {[%emt 0:01:42]} dxe4 {[%emt 0:08:35]} 18. Ndxe4 {[%emt 0:00:58]} Nd5 {[%emt 0:01:06]} 19. Kb1 {[%emt 0:02:51]} Nxe3 {[%emt 0:05:39]} 20. Qxe3 {[%emt 0:00:12]} g6 {[%emt 0:03:07]} 21. g5 {[%emt 0:02:17]} h5 {[%emt 0:04:40]} 22. h4 {[%emt 0:01:06]} Qb6 {[%emt 0:01:41]} 23. Na4 {[%emt 0:04:31]} Qc7 {[%emt 0:01:52]} 24. Nac5 {[%emt 0:01:24]} b6 {[%emt 0:01:24]} 25. Nd3 {[%emt 0:00:17]} O-O {[%emt 0:03:31]} 26. Ne5 {[%emt 0:02:04]} a5 {[%emt 0:01:40]} 27. Qf3 {[%emt 0:01:16]} Rac8 {[%emt 0:00:53]} 28. Nf6+ {[%emt 0:01:25]} Kg7 {[%emt 0:03:47]} 29. Nxh7 {[%emt 0:05:05]} Kxh7 {[%emt 0:01:27]} 30. Qe4 {[%emt 0:00:02]} Kg7 {[%emt 0:00:39]} 31. Rg2 {[%emt 0:03:56]} Rfd8 {[%emt 0:01:45]} 32. c3 {[%emt 0:04:05]} c5 {[%emt 0:01:35]} 33. Rd2 {[%emt 0:03:50]} cxd4 {[%emt 0:03:57]} 34. Rxd4 {[%emt 0:00:58]} Rxd4 {[%emt 0:01:13]} 35. Qxd4 {[%emt 0:00:48]} Bc5 {[%emt 0:01:53]} 36. Qe4 {[%emt 0:02:43]} Rd8 {[%emt 0:02:15]} 37. Kc2 {[%emt 0:00:33]} Rd5 {[%emt 0:02:04]} 38. Rf3 {[%emt 0:03:37]} Be7 {[%emt 0:02:57]} 39. Rd3 {[%emt 0:02:04]} Rxd3 {[%emt 0:01:20]} 40. Nxd3 {[%emt 0:00:15]} Bd6 {[%emt 0:03:33]} 41. a3 {[%emt 0:30:43]} Kg8 {[%emt 0:30:43]} 42. b4 {[%emt 0:00:35]} axb4 {[%emt 0:01:57]} 43. axb4 {[%emt 0:00:10]} Kf8 {[%emt 0:01:28]} 44. Kb3 {[%emt 0:03:31]} Qb8 {[%emt 0:02:56]} 45. Qd4 {[%emt 0:00:55]} Kg8 {[%emt 0:01:05]} 46. c4 {[%emt 0:01:55]} Bc7 {[%emt 0:03:13]} 47. Qf6 {[%emt 0:02:28]} Qd8 {[%emt 0:02:08]} 48. Qxd8+ {[%emt 0:02:25]} Bxd8 {[%emt 0:00:28]} 49. b5 {[%emt 0:00:01]} f6 {[%emt 0:01:52]} 50. Kc3 {[%emt 0:01:08]} fxg5 {[%emt 0:00:14]} 51. fxg5 {[%emt 0:00:14]} Bc7 {[%emt 0:01:17]} 52. c5 {[%emt 0:05:33]} bxc5 {[%emt 0:01:42]} 53. Nxc5 {[%emt 0:00:48]} Kf7 {[%emt 0:00:12]} 54. Kc4 {[%emt 0:03:27]} Ke7 {[%emt 0:00:11]} 55. Ne4 {[%emt 0:01:19]} Bb6 {[%emt 0:00:07]} 56. Kd3 {[%emt 0:36:29]} e5 {[%emt 0:07:21]} 57. Kc4 Ke6 {[%emt 0:00:30]} 1/2-1/2